[Event "Titled Tuesday Blitz May 23 Early 2023"]
[White "Kopczynski, Michal"]
[Black "Bayo Milagro, Alvaro"]
[WhiteFideId "1124200"]
[BlackFideId "22275240"]
[WhiteElo "2212"]
[BlackElo "2270"]
[Result "0-1"]
[Round "04"]
[TimeControl "180+2"]
[Date "2023.05.23"]
[WhiteClock "0:00:37"]
[BlackClock "0:00:24"]

1. e4 {[%clk 0:03:00]}  c5 {[%clk 0:02:31]} 2. d4 {[%clk 0:03:00]}  cxd4 {[%clk 0:02:31]} 3. c3 {[%clk 0:03:01]}  Nf6 {[%clk 0:02:31]} 4. Bd3 {[%clk 0:03:01]}  Nc6 {[%clk 0:02:30]} 5. f4 {[%clk 0:03:00]}  d5 {[%clk 0:02:28]} 6. e5 {[%clk 0:03:00]}  Ne4 {[%clk 0:02:29]} 7. Nf3 {[%clk 0:03:01]}  Bg4 {[%clk 0:02:28]} 8. O-O {[%clk 0:03:00]}  dxc3 {[%clk 0:02:27]} 9. Nxc3 {[%clk 0:02:59]}  Qb6+ {[%clk 0:02:26]} 10. Kh1 {[%clk 0:02:59]}  Nf2+ {[%clk 0:02:25]} 11. Rxf2 {[%clk 0:02:59]}  Qxf2 {[%clk 0:02:26]} 12. Nxd5 {[%clk 0:02:59]}  Rc8 {[%clk 0:02:21]} 13. Be3 {[%clk 0:02:57]}  Bxf3 {[%clk 0:02:13]} 14. gxf3 {[%clk 0:02:58]}  Qh4 {[%clk 0:02:11]} 15. Qb3 {[%clk 0:02:50]}  Qh3 {[%clk 0:01:55]} 16. Be4 {[%clk 0:02:09]}  e6 {[%clk 0:01:54]} 17. Qxb7 {[%clk 0:02:03]}  exd5 {[%clk 0:01:54]} 18. f5 {[%clk 0:02:01]}  dxe4 {[%clk 0:01:50]} 19. Qxc8+ {[%clk 0:02:00]}  Nd8 {[%clk 0:01:50]} 20. Kg1 {[%clk 0:01:40]}  Qxf3 {[%clk 0:01:46]} 21. Bf2 {[%clk 0:01:25]}  Be7 {[%clk 0:01:31]} 22. Re1 {[%clk 0:01:19]}  O-O {[%clk 0:01:30]} 23. Re3 {[%clk 0:01:15]}  Qd1+ {[%clk 0:01:30]} 24. Kg2 {[%clk 0:01:15]}  Ne6 {[%clk 0:01:20]} 25. Qb7 {[%clk 0:01:06]}  Nf4+ {[%clk 0:01:18]} 26. Kg3 {[%clk 0:01:05]}  Nh5+ {[%clk 0:00:49]} 27. Kg2 {[%clk 0:00:57]}  Qg4+ {[%clk 0:00:47]} 28. Kf1 {[%clk 0:00:55]}  Bg5 {[%clk 0:00:43]} 29. Rxe4 {[%clk 0:00:53]}  Qxf5 {[%clk 0:00:40]} 30. Kg2 {[%clk 0:00:45]}  Nf4+ {[%clk 0:00:37]} 31. Kg1 {[%clk 0:00:42]}  Qg4+ {[%clk 0:00:29]} 32. Kf1 {[%clk 0:00:42]}  Qd1+ {[%clk 0:00:23]} 33. Re1 {[%clk 0:00:41]}  Qd3+ {[%clk 0:00:23]} 34. Kg1 {[%clk 0:00:41]}  Nh3+ {[%clk 0:00:23]} 35. Kg2 {[%clk 0:00:39]}  Nxf2 {[%clk 0:00:24]} 36. Kxf2 {[%clk 0:00:37]}  Bh4+ {[%clk 0:00:24]} 0-1


[Site "https://www.chess.com"]

[Event "Titled Tuesday Blitz May 23 Early 2023"]
[White "Shuvalov, Evgenij"]
[Black "Real_taiatai"]
[WhiteFideId "4187237"]
[WhiteElo "2080"]
[BlackElo "2337"]
[Result "0-1"]
[Round "04"]
[TimeControl "180+2"]
[Date "2023.05.23"]
[WhiteClock "0:00:16"]
[BlackClock "0:00:20"]

1. d4 {[%clk 0:02:55]}  d5 {[%clk 0:02:59]} 2. c4 {[%clk 0:02:54]}  e6 {[%clk 0:02:56]} 3. Nc3 {[%clk 0:02:54]}  c6 {[%clk 0:02:50]} 4. e4 {[%clk 0:02:52]}  dxe4 {[%clk 0:02:50]} 5. Nxe4 {[%clk 0:02:53]}  Bb4+ {[%clk 0:02:50]} 6. Bd2 {[%clk 0:02:48]}  Qxd4 {[%clk 0:02:49]} 7. Bxb4 {[%clk 0:02:48]}  Qxe4+ {[%clk 0:02:49]} 8. Ne2 {[%clk 0:02:49]}  Na6 {[%clk 0:02:43]} 9. Bf8 {[%clk 0:02:45]}  Ne7 {[%clk 0:02:26]} 10. Bxg7 {[%clk 0:02:43]}  Rg8 {[%clk 0:02:27]} 11. Qd4 {[%clk 0:02:22]}  Qxd4 {[%clk 0:02:06]} 12. Bxd4 {[%clk 0:02:22]}  Nb4 {[%clk 0:02:06]} 13. O-O-O {[%clk 0:02:05]}  b6 {[%clk 0:01:47]} 14. Ng3 {[%clk 0:01:47]}  c5 {[%clk 0:01:39]} 15. Bf6 {[%clk 0:01:02]}  Bb7 {[%clk 0:01:25]} 16. a3 {[%clk 0:00:58]}  Nbc6 {[%clk 0:01:23]} 17. Ne4 {[%clk 0:00:47]}  Nf5 {[%clk 0:00:39]} 18. h3 {[%clk 0:00:17]}  Rg6 {[%clk 0:00:28]} 19. g4 {[%clk 0:00:16]}  Ncd4 {[%clk 0:00:20]} 20. gxf5 {[%clk 0:00:16]}  Bxe4 {[%clk 0:00:20]} 21. fxg6 {[%clk 0:00:16]}  Nb3# {[%clk 0:00:20]} 0-1


[Site "https://www.chess.com"]

[Event "Titled Tuesday Blitz May 23 Early 2023"]
[White "Ginzburg, Yakov"]
[Black "Theytookourjobs"]
[WhiteFideId "4157176"]
[WhiteElo "2305"]
[BlackElo "2339"]
[Result "0-1"]
[Round "04"]
[TimeControl "180+2"]
[Date "2023.05.23"]
[WhiteClock "0:00:00"]
[BlackClock "0:00:11"]

1. d4 {[%clk 0:02:59]}  e6 {[%clk 0:03:00]} 2. g3 {[%clk 0:02:56]}  f5 {[%clk 0:02:59]} 3. d5 {[%clk 0:02:56]}  e5 {[%clk 0:02:57]} 4. Bg2 {[%clk 0:02:45]}  d6 {[%clk 0:02:54]} 5. h4 {[%clk 0:02:42]}  Nf6 {[%clk 0:02:51]} 6. Nh3 {[%clk 0:02:42]}  Be7 {[%clk 0:02:51]} 7. c4 {[%clk 0:02:39]}  O-O {[%clk 0:02:49]} 8. Nc3 {[%clk 0:02:39]}  a5 {[%clk 0:02:48]} 9. Bg5 {[%clk 0:02:33]}  Nbd7 {[%clk 0:02:48]} 10. Qc2 {[%clk 0:02:32]}  Nc5 {[%clk 0:02:48]} 11. O-O-O {[%clk 0:02:26]}  a4 {[%clk 0:02:46]} 12. Kb1 {[%clk 0:02:19]}  Bd7 {[%clk 0:02:36]} 13. Be3 {[%clk 0:02:15]}  b6 {[%clk 0:02:16]} 14. Ng5 {[%clk 0:02:14]}  Ng4 {[%clk 0:02:10]} 15. Bxc5 {[%clk 0:02:10]}  bxc5 {[%clk 0:02:11]} 16. Nh3 {[%clk 0:02:06]}  Qb8 {[%clk 0:01:54]} 17. Rd3 {[%clk 0:01:38]}  Qb4 {[%clk 0:01:29]} 18. Nd1 {[%clk 0:01:39]}  e4 {[%clk 0:01:24]} 19. Rd2 {[%clk 0:01:26]}  Bf6 {[%clk 0:01:23]} 20. a3 {[%clk 0:01:11]}  Qb6 {[%clk 0:01:07]} 21. Ng5 {[%clk 0:01:11]}  Rfb8 {[%clk 0:01:04]} 22. f3 {[%clk 0:01:04]}  e3 {[%clk 0:00:40]} 23. Rd3 {[%clk 0:00:50]}  Nf2 {[%clk 0:00:39]} 24. Nc3 {[%clk 0:00:09]}  Nxd3 {[%clk 0:00:36]} 25. exd3 {[%clk 0:00:09]}  Qb3 {[%clk 0:00:31]} 26. Qxb3 {[%clk 0:00:06]}  Rxb3 {[%clk 0:00:32]} 27. Nd1 {[%clk 0:00:05]}  Rab8 {[%clk 0:00:29]} 28. Re1 {[%clk 0:00:04]}  Bxb2 {[%clk 0:00:28]} 29. Kc2 {[%clk 0:00:03]}  Bd4 {[%clk 0:00:28]} 30. Bh3 {[%clk 0:00:03]}  Rxa3 {[%clk 0:00:26]} 31. g4 {[%clk 0:00:02]}  Ra2+ {[%clk 0:00:26]} 32. Kc1 {[%clk 0:00:02]}  Ra1+ {[%clk 0:00:20]} 33. Kc2 {[%clk 0:00:03]}  Ra2+ {[%clk 0:00:18]} 34. Kc1 {[%clk 0:00:03]}  a3 {[%clk 0:00:17]} 35. gxf5 {[%clk 0:00:03]}  Rh2 {[%clk 0:00:12]} 36. f6 {[%clk 0:00:02]}  Bxh3 {[%clk 0:00:11]} 37. f7+ {[%clk 0:00:00]}  Kf8 {[%clk 0:00:11]} 0-1


[Site "https://www.chess.com"]

[Event "Titled Tuesday Blitz May 23 Early 2023"]
[White "Boyer, Mahel"]
[Black "Khromkin, Andrey"]
[WhiteFideId "45102422"]
[BlackFideId "4154126"]
[WhiteElo "2439"]
[BlackElo "2425"]
[Result "0-1"]
[Round "04"]
[TimeControl "180+2"]
[Date "2023.05.23"]
[WhiteClock "0:01:25"]
[BlackClock "0:01:26"]

1. d4 {[%clk 0:03:00]}  d5 {[%clk 0:02:59]} 2. Nf3 {[%clk 0:02:56]}  a6 {[%clk 0:02:58]} 3. g3 {[%clk 0:02:56]}  b5 {[%clk 0:02:57]} 4. Bg2 {[%clk 0:02:57]}  Bb7 {[%clk 0:02:58]} 5. O-O {[%clk 0:02:58]}  Nd7 {[%clk 0:02:58]} 6. Nbd2 {[%clk 0:02:58]}  e6 {[%clk 0:02:59]} 7. Re1 {[%clk 0:02:58]}  Ngf6 {[%clk 0:02:58]} 8. Ne5 {[%clk 0:02:54]}  Bd6 {[%clk 0:02:54]} 9. e4 {[%clk 0:02:53]}  dxe4 {[%clk 0:02:52]} 10. Nxe4 {[%clk 0:02:51]}  Nxe4 {[%clk 0:02:47]} 11. Bxe4 {[%clk 0:02:52]}  Bxe4 {[%clk 0:02:46]} 12. Rxe4 {[%clk 0:02:53]}  Nxe5 {[%clk 0:02:46]} 13. dxe5 {[%clk 0:02:53]}  Bc5 {[%clk 0:02:46]} 14. Qg4 {[%clk 0:02:52]}  h5 {[%clk 0:02:33]} 15. Qxg7 {[%clk 0:02:51]}  Qd1+ {[%clk 0:02:33]} 16. Kg2 {[%clk 0:02:51]}  O-O-O {[%clk 0:02:33]} 17. Qxf7 {[%clk 0:02:46]}  Rdf8 {[%clk 0:02:13]} 18. Qxe6+ {[%clk 0:02:44]}  Kb8 {[%clk 0:02:14]} 19. Be3 {[%clk 0:02:44]}  Qf3+ {[%clk 0:02:09]} 20. Kg1 {[%clk 0:02:45]}  Bxe3 {[%clk 0:02:02]} 21. fxe3 {[%clk 0:02:05]}  Qxe4 {[%clk 0:01:56]} 22. Qxa6 {[%clk 0:02:06]}  Qxe3+ {[%clk 0:01:48]} 23. Kg2 {[%clk 0:02:04]}  Qe2+ {[%clk 0:01:33]} 24. Kh3 {[%clk 0:02:05]}  h4 {[%clk 0:01:33]} 25. Re1 {[%clk 0:01:26]}  hxg3+ {[%clk 0:01:29]} 26. Kxg3 {[%clk 0:01:25]}  Qf3# {[%clk 0:01:26]} 0-1


[Site "https://www.chess.com"]

[Event "Titled Tuesday Blitz May 23 Early 2023"]
[White "Smirnov, Pavel"]
[Black "Golubev, Mikhail"]
[WhiteFideId "4123425"]
[BlackFideId "14100983"]
[WhiteElo "2520"]
[BlackElo "2374"]
[Result "1-0"]
[Round "04"]
[TimeControl "180+2"]
[Date "2023.05.23"]
[WhiteClock "0:01:37"]
[BlackClock "0:00:00"]

1. d4 {[%clk 0:02:26]}  Nf6 {[%clk 0:02:58]} 2. c4 {[%clk 0:02:26]}  g6 {[%clk 0:02:59]} 3. g3 {[%clk 0:02:26]}  Bg7 {[%clk 0:02:59]} 4. Nf3 {[%clk 0:02:27]}  O-O {[%clk 0:02:59]} 5. Bg2 {[%clk 0:02:28]}  d6 {[%clk 0:03:00]} 6. O-O {[%clk 0:02:29]}  Nbd7 {[%clk 0:03:00]} 7. Nc3 {[%clk 0:02:30]}  e5 {[%clk 0:03:00]} 8. b3 {[%clk 0:02:30]}  Re8 {[%clk 0:02:54]} 9. e4 {[%clk 0:02:30]}  exd4 {[%clk 0:02:48]} 10. Nxd4 {[%clk 0:02:29]}  Nc5 {[%clk 0:02:46]} 11. f3 {[%clk 0:02:29]}  Nfd7 {[%clk 0:02:34]} 12. Be3 {[%clk 0:02:28]}  f5 {[%clk 0:02:25]} 13. Qd2 {[%clk 0:02:26]}  fxe4 {[%clk 0:02:23]} 14. fxe4 {[%clk 0:02:27]}  c6 {[%clk 0:02:06]} 15. Kh1 {[%clk 0:02:20]}  Ne5 {[%clk 0:02:05]} 16. h3 {[%clk 0:02:19]}  Bd7 {[%clk 0:01:15]} 17. Rad1 {[%clk 0:02:15]}  Qa5 {[%clk 0:00:59]} 18. Nde2 {[%clk 0:02:10]}  Rad8 {[%clk 0:00:43]} 19. Bg5 {[%clk 0:02:03]}  Rc8 {[%clk 0:00:35]} 20. Bf6 {[%clk 0:02:03]}  Bxf6 {[%clk 0:00:28]} 21. Rxf6 {[%clk 0:02:02]}  Rf8 {[%clk 0:00:20]} 22. Rxf8+ {[%clk 0:01:57]}  Rxf8 {[%clk 0:00:21]} 23. Qxd6 {[%clk 0:01:57]}  Nf7 {[%clk 0:00:08]} 24. Qd4 {[%clk 0:01:51]}  Bc8 {[%clk 0:00:08]} 25. Qe3 {[%clk 0:01:50]}  Ne6 {[%clk 0:00:08]} 26. Nf4 {[%clk 0:01:48]}  Ne5 {[%clk 0:00:06]} 27. a4 {[%clk 0:01:46]}  Qb6 {[%clk 0:00:04]} 28. Qxb6 {[%clk 0:01:44]}  axb6 {[%clk 0:00:05]} 29. Nce2 {[%clk 0:01:42]}  Nc5 {[%clk 0:00:05]} 30. Nc1 {[%clk 0:01:40]}  g5 {[%clk 0:00:04]} 31. Nfe2 {[%clk 0:01:39]}  g4 {[%clk 0:00:04]} 32. h4 {[%clk 0:01:38]}  Rf2 {[%clk 0:00:00]} 33. Rd8+ {[%clk 0:01:37]} 1-0


[Site "https://www.chess.com"]

[Event "Titled Tuesday Blitz May 23 Early 2023"]
[White "Tristan, Leonardo"]
[Black "Petrova, Irina"]
[WhiteFideId "113816"]
[BlackFideId "14124122"]
[WhiteElo "2461"]
[BlackElo "2084"]
[Result "1-0"]
[Round "04"]
[TimeControl "180+2"]
[Date "2023.05.23"]
[WhiteClock "0:00:17"]
[BlackClock "0:00:22"]

1. d4 {[%clk 0:03:00]}  d6 {[%clk 0:02:58]} 2. e4 {[%clk 0:03:00]}  Nf6 {[%clk 0:02:57]} 3. Nc3 {[%clk 0:03:00]}  e5 {[%clk 0:02:57]} 4. Nf3 {[%clk 0:02:58]}  Nbd7 {[%clk 0:02:57]} 5. Bc4 {[%clk 0:02:58]}  Be7 {[%clk 0:02:58]} 6. O-O {[%clk 0:02:58]}  c6 {[%clk 0:02:58]} 7. a4 {[%clk 0:02:57]}  h6 {[%clk 0:02:58]} 8. Re1 {[%clk 0:02:57]}  Qc7 {[%clk 0:02:58]} 9. a5 {[%clk 0:02:53]}  O-O {[%clk 0:02:57]} 10. Ba2 {[%clk 0:02:41]}  Re8 {[%clk 0:02:57]} 11. d5 {[%clk 0:02:40]}  Bf8 {[%clk 0:02:53]} 12. Nd2 {[%clk 0:02:34]}  b5 {[%clk 0:02:43]} 13. dxc6 {[%clk 0:02:28]}  Qxc6 {[%clk 0:02:43]} 14. Nd5 {[%clk 0:02:22]}  Bb7 {[%clk 0:02:37]} 15. a6 {[%clk 0:02:18]}  Bxa6 {[%clk 0:02:27]} 16. Nb4 {[%clk 0:02:18]}  Qb7 {[%clk 0:02:24]} 17. Nxa6 {[%clk 0:02:18]}  b4 {[%clk 0:02:21]} 18. Nf1 {[%clk 0:02:00]}  Rec8 {[%clk 0:02:04]} 19. f3 {[%clk 0:01:34]}  Be7 {[%clk 0:01:11]} 20. Ne3 {[%clk 0:01:29]}  Kf8 {[%clk 0:01:10]} 21. Bd5 {[%clk 0:01:17]}  Nxd5 {[%clk 0:01:08]} 22. Nxd5 {[%clk 0:01:13]}  Nf6 {[%clk 0:01:04]} 23. Naxb4 {[%clk 0:01:11]}  Nxd5 {[%clk 0:01:00]} 24. Nxd5 {[%clk 0:01:11]}  Bd8 {[%clk 0:01:01]} 25. b3 {[%clk 0:01:09]}  Bb6+ {[%clk 0:00:58]} 26. Kh1 {[%clk 0:01:06]}  Bd4 {[%clk 0:00:57]} 27. Ra4 {[%clk 0:01:04]}  Qb5 {[%clk 0:00:51]} 28. Ba3 {[%clk 0:01:02]}  Rc6 {[%clk 0:00:48]} 29. Qe2 {[%clk 0:00:53]}  Qb7 {[%clk 0:00:48]} 30. Rc4 {[%clk 0:00:43]}  Rac8 {[%clk 0:00:47]} 31. c3 {[%clk 0:00:34]}  Bc5 {[%clk 0:00:31]} 32. Bxc5 {[%clk 0:00:31]}  dxc5 {[%clk 0:00:32]} 33. Qa2 {[%clk 0:00:27]}  Qb5 {[%clk 0:00:31]} 34. Qa4 {[%clk 0:00:23]}  Qb7 {[%clk 0:00:30]} 35. Ra1 {[%clk 0:00:23]}  a6 {[%clk 0:00:27]} 36. b4 {[%clk 0:00:19]}  cxb4 {[%clk 0:00:26]} 37. Rxc6 {[%clk 0:00:18]}  Rxc6 {[%clk 0:00:27]} 38. Qxb4+ {[%clk 0:00:18]}  Qxb4 {[%clk 0:00:25]} 39. cxb4 {[%clk 0:00:19]}  Rc4 {[%clk 0:00:23]} 40. Kg1 {[%clk 0:00:18]}  Rc6 {[%clk 0:00:22]} 41. Kf2 {[%clk 0:00:19]}  f6 {[%clk 0:00:22]} 42. Ke3 {[%clk 0:00:19]}  Kf7 {[%clk 0:00:23]} 43. Kd3 {[%clk 0:00:19]}  Ke6 {[%clk 0:00:24]} 44. Ra5 {[%clk 0:00:17]}  g6 {[%clk 0:00:24]} 45. Rxa6 {[%clk 0:00:16]}  Rxa6 {[%clk 0:00:23]} 46. Nc7+ {[%clk 0:00:17]}  Kd7 {[%clk 0:00:23]} 47. Nxa6 {[%clk 0:00:17]}  Kc6 {[%clk 0:00:24]} 48. Nc5 {[%clk 0:00:17]}  Kb5 {[%clk 0:00:25]} 49. Kc3 {[%clk 0:00:17]}  f5 {[%clk 0:00:25]} 50. Nd7 {[%clk 0:00:17]}  f4 {[%clk 0:00:23]} 51. Nxe5 {[%clk 0:00:17]}  g5 {[%clk 0:00:24]} 52. Nf7 {[%clk 0:00:17]}  h5 {[%clk 0:00:22]} 53. Nxg5 {[%clk 0:00:17]} 1-0


[Site "https://www.chess.com"]

[Event "Titled Tuesday Blitz May 23 Early 2023"]
[White "Kohler, Aran"]
[Black "Djordjevic, Vuk"]
[WhiteFideId "1002856"]
[BlackFideId "902098"]
[WhiteElo "2401"]
[BlackElo "2452"]
[Result "0-1"]
[Round "04"]
[TimeControl "180+2"]
[Date "2023.05.23"]
[WhiteClock "0:00:00"]
[BlackClock "0:01:06"]

1. d4 {[%clk 0:02:59]}  Nf6 {[%clk 0:03:00]} 2. c3 {[%clk 0:02:59]}  d5 {[%clk 0:03:00]} 3. Bg5 {[%clk 0:02:59]}  Ne4 {[%clk 0:02:59]} 4. h4 {[%clk 0:02:58]}  c5 {[%clk 0:02:57]} 5. e3 {[%clk 0:02:54]}  Nc6 {[%clk 0:02:55]} 6. Nd2 {[%clk 0:02:53]}  Nxg5 {[%clk 0:02:53]} 7. hxg5 {[%clk 0:02:52]}  Bf5 {[%clk 0:02:52]} 8. g4 {[%clk 0:02:45]}  Bg6 {[%clk 0:02:45]} 9. f4 {[%clk 0:02:46]}  e6 {[%clk 0:02:45]} 10. Ngf3 {[%clk 0:02:46]}  Qb6 {[%clk 0:02:40]} 11. Qb3 {[%clk 0:02:28]}  Bd6 {[%clk 0:02:17]} 12. Qxb6 {[%clk 0:01:59]}  axb6 {[%clk 0:02:15]} 13. Bb5 {[%clk 0:01:51]}  O-O-O {[%clk 0:02:09]} 14. Ne5 {[%clk 0:01:49]}  Nxe5 {[%clk 0:02:06]} 15. dxe5 {[%clk 0:01:48]}  Be7 {[%clk 0:02:06]} 16. Nf3 {[%clk 0:01:43]}  Be4 {[%clk 0:02:05]} 17. Be2 {[%clk 0:01:27]}  d4 {[%clk 0:01:54]} 18. cxd4 {[%clk 0:01:25]}  cxd4 {[%clk 0:01:54]} 19. Rc1+ {[%clk 0:01:21]}  Kb8 {[%clk 0:01:51]} 20. exd4 {[%clk 0:01:17]}  Bxf3 {[%clk 0:01:46]} 21. Bxf3 {[%clk 0:01:16]}  Rxd4 {[%clk 0:01:47]} 22. Kf2 {[%clk 0:01:13]}  Rxf4 {[%clk 0:01:46]} 23. Ke3 {[%clk 0:01:11]}  Bxg5 {[%clk 0:01:46]} 24. Ke2 {[%clk 0:01:10]}  Rxf3 {[%clk 0:01:44]} 25. Kxf3 {[%clk 0:01:09]}  Bxc1 {[%clk 0:01:44]} 26. Rxc1 {[%clk 0:01:10]}  Rd8 {[%clk 0:01:42]} 27. b4 {[%clk 0:00:58]}  h6 {[%clk 0:01:42]} 28. a4 {[%clk 0:00:56]}  Rd3+ {[%clk 0:01:41]} 29. Ke4 {[%clk 0:00:50]}  Rg3 {[%clk 0:01:40]} 30. Kf4 {[%clk 0:00:48]}  Ra3 {[%clk 0:01:39]} 31. g5 {[%clk 0:00:30]}  Rxa4 {[%clk 0:01:34]} 32. Rc4 {[%clk 0:00:29]}  Ra1 {[%clk 0:01:24]} 33. gxh6 {[%clk 0:00:29]}  gxh6 {[%clk 0:01:18]} 34. Kg4 {[%clk 0:00:25]}  Rg1+ {[%clk 0:01:17]} 35. Kh5 {[%clk 0:00:22]}  Rg5+ {[%clk 0:01:17]} 36. Kxh6 {[%clk 0:00:23]}  Rxe5 {[%clk 0:01:17]} 37. Kg7 {[%clk 0:00:23]}  f5 {[%clk 0:01:17]} 38. Kf6 {[%clk 0:00:23]}  Re4 {[%clk 0:01:17]} 39. Rc1 {[%clk 0:00:19]}  f4 {[%clk 0:01:16]} 40. b5 {[%clk 0:00:18]}  f3 {[%clk 0:01:15]} 41. Kg5 {[%clk 0:00:18]}  f2 {[%clk 0:01:11]} 42. Rf1 {[%clk 0:00:18]}  Re2 {[%clk 0:01:10]} 43. Kf4 {[%clk 0:00:17]}  Kc7 {[%clk 0:01:10]} 44. Kf3 {[%clk 0:00:18]}  Rb2 {[%clk 0:01:11]} 45. Ke4 {[%clk 0:00:18]}  Kd6 {[%clk 0:01:10]} 46. Kd4 {[%clk 0:00:19]}  e5+ {[%clk 0:01:09]} 47. Ke4 {[%clk 0:00:19]}  Ke6 {[%clk 0:01:07]} 48. Rh1 {[%clk 0:00:17]}  Rxb5 {[%clk 0:01:06]} 49. Rh6+ {[%clk 0:00:08]}  Kf7 {[%clk 0:01:06]} 50. Rh1 {[%clk 0:00:09]}  Kf6 {[%clk 0:01:05]} 51. Rf1 {[%clk 0:00:07]}  Rb4+ {[%clk 0:01:05]} 52. Ke3 {[%clk 0:00:07]}  Rf4 {[%clk 0:01:06]} 53. Ke2 {[%clk 0:00:00]}  b5 {[%clk 0:01:06]} 0-1


[Site "https://www.chess.com"]

[Event "Titled Tuesday Blitz May 23 Early 2023"]
[White "Mogirzan, Matei-Valeriu"]
[Black "Jia, Haoxiang"]
[WhiteFideId "1257455"]
[BlackFideId "8602999"]
[WhiteElo "1733"]
[BlackElo "2678"]
[Result "0-1"]
[Round "04"]
[TimeControl "180+2"]
[Date "2023.05.23"]
[WhiteClock "0:00:06"]
[BlackClock "0:00:07"]

1. e4 {[%clk 0:02:58]}  c5 {[%clk 0:02:57]} 2. Nf3 {[%clk 0:02:58]}  d6 {[%clk 0:02:52]} 3. d4 {[%clk 0:02:57]}  cxd4 {[%clk 0:02:51]} 4. Nxd4 {[%clk 0:02:58]}  Nf6 {[%clk 0:02:52]} 5. Nc3 {[%clk 0:02:56]}  g6 {[%clk 0:02:52]} 6. Bc4 {[%clk 0:02:55]}  Bg7 {[%clk 0:02:53]} 7. f3 {[%clk 0:02:52]}  O-O {[%clk 0:02:53]} 8. Be3 {[%clk 0:02:53]}  Nc6 {[%clk 0:02:43]} 9. Qd2 {[%clk 0:02:50]}  Bd7 {[%clk 0:02:36]} 10. O-O-O {[%clk 0:02:48]}  Rc8 {[%clk 0:02:28]} 11. Bb3 {[%clk 0:02:47]}  Ne5 {[%clk 0:02:23]} 12. h4 {[%clk 0:02:43]}  h5 {[%clk 0:02:22]} 13. g4 {[%clk 0:02:42]}  hxg4 {[%clk 0:02:21]} 14. Rdg1 {[%clk 0:02:38]}  Nc4 {[%clk 0:01:54]} 15. Bxc4 {[%clk 0:02:19]}  Rxc4 {[%clk 0:01:55]} 16. h5 {[%clk 0:02:11]}  Nxh5 {[%clk 0:01:38]} 17. fxg4 {[%clk 0:02:07]}  Nf6 {[%clk 0:01:22]} 18. Bh6 {[%clk 0:01:49]}  Rxd4 {[%clk 0:00:54]} 19. Qxd4 {[%clk 0:01:46]}  Bxh6+ {[%clk 0:00:22]} 20. Rxh6 {[%clk 0:01:47]}  Qb6 {[%clk 0:00:22]} 21. Qd1 {[%clk 0:01:33]}  Qe3+ {[%clk 0:00:18]} 22. Kb1 {[%clk 0:01:32]}  Qxh6 {[%clk 0:00:19]} 23. g5 {[%clk 0:01:33]}  Qg7 {[%clk 0:00:16]} 24. gxf6 {[%clk 0:01:30]}  Qxf6 {[%clk 0:00:17]} 25. Nd5 {[%clk 0:01:30]}  Qe5 {[%clk 0:00:17]} 26. Qd2 {[%clk 0:01:21]}  Kg7 {[%clk 0:00:16]} 27. Rg5 {[%clk 0:00:57]}  Qxe4 {[%clk 0:00:10]} 28. a3 {[%clk 0:00:51]}  e5 {[%clk 0:00:10]} 29. Ne3 {[%clk 0:00:20]}  Be6 {[%clk 0:00:09]} 30. Nf1 {[%clk 0:00:14]}  Qf3 {[%clk 0:00:09]} 31. Ng3 {[%clk 0:00:12]}  Rh8 {[%clk 0:00:08]} 32. Qxd6 {[%clk 0:00:06]}  Rh1+ {[%clk 0:00:07]} 0-1


[Site "https://www.chess.com"]

[Event "Titled Tuesday Blitz May 23 Early 2023"]
[White "Nagare Kaivalya Sandip"]
[Black "Makhmudov, Shukhrat"]
[WhiteFideId "25957929"]
[BlackFideId "14200775"]
[WhiteElo "2024"]
[BlackElo "2135"]
[Result "1-0"]
[Round "04"]
[TimeControl "180+2"]
[Date "2023.05.23"]
[WhiteClock "0:00:41"]
[BlackClock "0:00:17"]

1. e4 {[%clk 0:03:00]}  e5 {[%clk 0:03:00]} 2. Nf3 {[%clk 0:02:56]}  Nc6 {[%clk 0:03:00]} 3. Bb5 {[%clk 0:02:46]}  a6 {[%clk 0:03:00]} 4. Ba4 {[%clk 0:02:31]}  Nf6 {[%clk 0:02:59]} 5. O-O {[%clk 0:02:30]}  Be7 {[%clk 0:02:59]} 6. c3 {[%clk 0:02:27]}  Nxe4 {[%clk 0:02:51]} 7. Re1 {[%clk 0:02:24]}  Nc5 {[%clk 0:02:43]} 8. Nxe5 {[%clk 0:02:20]}  Nxe5 {[%clk 0:02:34]} 9. Rxe5 {[%clk 0:02:20]}  Nxa4 {[%clk 0:02:14]} 10. Qxa4 {[%clk 0:02:19]}  O-O {[%clk 0:02:14]} 11. d4 {[%clk 0:02:17]}  d5 {[%clk 0:02:14]} 12. Qd1 {[%clk 0:02:12]}  Bd6 {[%clk 0:02:13]} 13. Re1 {[%clk 0:02:03]}  Qh4 {[%clk 0:02:11]} 14. g3 {[%clk 0:02:02]}  Qh3 {[%clk 0:02:11]} 15. Qf3 {[%clk 0:02:01]}  Bg4 {[%clk 0:02:10]} 16. Qxd5 {[%clk 0:01:58]}  Rae8 {[%clk 0:02:09]} 17. Be3 {[%clk 0:01:58]}  Bd7 {[%clk 0:01:47]} 18. Qg2 {[%clk 0:01:55]}  Qh5 {[%clk 0:01:44]} 19. Nd2 {[%clk 0:01:54]}  Bc6 {[%clk 0:01:43]} 20. f3 {[%clk 0:01:54]}  f5 {[%clk 0:01:38]} 21. Bf4 {[%clk 0:01:49]}  Bxf4 {[%clk 0:01:35]} 22. gxf4 {[%clk 0:01:50]}  Rf6 {[%clk 0:01:27]} 23. Kh1 {[%clk 0:01:44]}  Rfe6 {[%clk 0:01:15]} 24. Re5 {[%clk 0:01:32]}  Rg6 {[%clk 0:01:10]} 25. Qf2 {[%clk 0:01:30]}  Rd8 {[%clk 0:01:04]} 26. Rae1 {[%clk 0:01:27]}  h6 {[%clk 0:01:01]} 27. Re6 {[%clk 0:01:14]}  Rd6 {[%clk 0:01:00]} 28. Rxd6 {[%clk 0:01:12]}  cxd6 {[%clk 0:00:58]} 29. c4 {[%clk 0:01:10]}  d5 {[%clk 0:00:51]} 30. c5 {[%clk 0:01:09]}  Bb5 {[%clk 0:00:51]} 31. b3 {[%clk 0:01:00]}  Qh3 {[%clk 0:00:46]} 32. a4 {[%clk 0:00:58]}  Bd3 {[%clk 0:00:44]} 33. Rg1 {[%clk 0:00:54]}  Re6 {[%clk 0:00:42]} 34. Qg3 {[%clk 0:00:48]}  Qxg3 {[%clk 0:00:40]} 35. hxg3 {[%clk 0:00:49]}  Re2 {[%clk 0:00:40]} 36. Rg2 {[%clk 0:00:49]}  Re1+ {[%clk 0:00:40]} 37. Kh2 {[%clk 0:00:49]}  Rd1 {[%clk 0:00:36]} 38. b4 {[%clk 0:00:49]}  Kf7 {[%clk 0:00:33]} 39. Nb3 {[%clk 0:00:44]}  Bc4 {[%clk 0:00:29]} 40. Na5 {[%clk 0:00:44]}  Rxd4 {[%clk 0:00:24]} 41. Nxb7 {[%clk 0:00:44]}  Bb3 {[%clk 0:00:24]} 42. c6 {[%clk 0:00:41]}  Rxb4 {[%clk 0:00:17]} 43. c7 {[%clk 0:00:41]} 1-0


[Site "https://www.chess.com"]